Cogmind - Beta 15 @@@ ROGUE MODE // 2025.07.05 @ 16:35:03 Player: Rockstar Result: Destroyed by G-47 Trooper with Particle Gun Performance ------------- Evolutions (1) 500 Regions Visited (3) 600 Robots Destroyed (21) 105 Value Destroyed (590) 590 Prototype IDs (3) 60 Alien Tech Used (0) 0 Bonus (35) 35 TOTAL SCORE: 1890 Bonus ------- Follower Combat Kills 35 Cogmind --------- Core Integrity 0/400 Matter 279/300 Energy 99/100 System Corruption 0% Temperature Cool (9) Movement Core (200) Ox3 Location -9/Storage Parts ------- > --- POWER (1) -------- (None) > --- PROPULSION (4) --- (None) > --- UTILITY (2) ------ Medium Storage Unit > --- WEAPON (2) ------- (None) > --- INVENTORY (10) --- Ion Engine Hover Unit Hover Unit Targeting Computer Small Laser Advanced Beam Cannon Advanced Beam Cannon EMP Blaster Peak State ------------ > --- POWER ------------ Improved Ion Engine > --- PROPULSION ------- Hover Unit Hover Unit Hover Unit Hover Unit > --- UTILITY ---------- Cooling System Medium Storage Unit > --- WEAPON ----------- EM Pulse Gun EMP Blaster > --- INVENTORY -------- Ion Engine Ion Engine Aluminum Leg Aluminum Leg Small Battery Targeting Computer Small Laser Advanced Beam Cannon Advanced Beam Cannon Assault Rifle [Rating: 13] Favorites ----------- Power Improved Ion Engine Engine Improved Ion Engine Propulsion Hover Unit Leg Aluminum Leg Hover Unit Hover Unit Utility Small Storage Unit Device Cooling System Storage Small Storage Unit Weapon EM Pulse Gun Energy Gun EM Pulse Gun Ballistic Gun Assault Rifle Launcher EMP Blaster Build | -11 -10 -9 -9 ------- Run | Yrd Mat Mat Sto Slots Evolved 2 | . . 2 . Power . | . . . . Propulsion 2 | . . 2 . Utility . | . . . . Weapon . | . . . . Parts Attached 29 | 6 8 8 7 Power 5 | 1 1 2 1 Engine 5 | 1 1 2 1 Core . | . . . . Reactor . | . . . . Propulsion 10 | 2 2 4 2 Treads . | . . . . Leg 4 | 2 . . 2 Wheel . | . . . . Hover 6 | . 2 4 . Flight . | . . . . Utility 7 | 1 1 2 3 Device 2 | . . 2 . Storage 5 | 1 1 . 3 Processor . | . . . . Hackware . | . . . . Protection . | . . . . Artifact . | . . . . Weapon 7 | 2 4 . 1 Energy Gun 3 | . 3 . . Energy Cannon . | . . . . Ballistic Gun 3 | 2 1 . . Ballistic Cannon . | . . . . Launcher 1 | . . . 1 Special Weapon . | . . . . Impact Weapon . | . . . . Slashing Weapon . | . . . . Piercing Weapon . | . . . . Special Melee Weapon . | . . . . Unidentified Prototypes . | . . . . Parts Lost 13 | . 1 3 9 Power 2 | . . . 2 Propulsion 7 | . 1 2 4 Utility 1 | . . . 1 Weapon 3 | . . 1 2 Highest Loss Streak 9 | . 1 2 9 To Critical Strikes . | . . . . Average Backups 6 | 1 3 6 8 Power 1 | . 1 2 1 Propulsion 1 | . 1 2 2 Utility . | . . . 1 Weapon 1 | . 1 2 2 Tool/Special . | . . . . Unused Backups 7 | . 1 1 5 Power . | . . . . Propulsion 2 | . 1 . 1 Utility 1 | . . . 1 Weapon 4 | . . 1 3 Tool/Special . | . . . . Average Slot Usage (%) 89 | . 82 93 90 Engine 11 | . 14 11 10 Leg 5 | . 17 . 2 Hover 31 | . 8 42 35 Device 6 | . . 7 9 Storage 11 | . 14 11 11 Energy Gun 11 | . 9 16 9 Ballistic Gun 9 | . 16 5 8 Peak Build Rating 13 | 6 7 11 13 Average Rating 8 | 4 5 9 10 On Entrance 5 | . 6 6 11 Naked Turns . | . . . . Heaviest Build 25 | 13 14 18 25 Greatest Support 24 | 20 20 24 24 Greatest Overweight (x) 4 | . 1 . 4 Average Overweight (x) . | . . . . Largest Inventory Capacity 15 | 8 8 8 15 Average Capacity 8 | 7 8 8 8 Most Carried 10 | 2 8 8 10 Average Carried 6 | 1 4 6 8 Final Capacity 10 | 8 8 8 10 Final Carried 8 | 2 8 8 8 Class Distribution -------------------- 95% | Mutant 4% | Scavenger-Mutant Dominant Class ---------------- Mutant | -10/Materials Mutant | -9/Materials Mutant | -9/Storage Resources | -11 -10 -9 -9 ----------- Run | Yrd Mat Mat Sto Matter Collected 570 | 194 189 99 88 Remotely . | . . . . Salvage Created 839 | . 299 201 339 Parts 53 | . 17 17 19 Haulers Intercepted 1 | . . . 1 Recyclers Shooed 1 | . 1 . . Parts Field Recycled . | . . . . Retrieved Matter . | . . . . Parts Self-Destructed . | . . . . Prevented . | . . . . Kills | -11 -10 -9 -9 ------- Run | Yrd Mat Mat Sto Combat Hostiles Destroyed 17 | . 7 4 6 Guns 13 | . 6 3 4 AOE 3 | . 1 . 2 Classes Destroyed 7 | . 4 2 1 Worker 1 | . 1 . . Builder 1 | . . 1 . Hauler 1 | . . . 1 Recycler 1 | . 1 . . Swarmer 3 | . 3 . . Grunt 13 | . 4 3 6 Sentry 1 | . . 1 . Best Kill Streak 4 | . 4 2 4 Combat Bots Only 4 | . 3 2 4 Max Kills in Single Turn 2 | . 2 1 2 Gunslinging 1 | . 1 . . Exploded 2 | . 1 . 2 Melee . | . . . . Uniques/NPCs Destroyed . | . . . . Combat | -11 -10 -9 -9 -------- Run | Yrd Mat Mat Sto Hostile Shots Fired 162 | . 44 25 93 Missed 40 | . 5 5 30 Hits 122 | . 39 20 63 Melee 3 | . . . 3 Projectile 119 | . 39 20 60 Critical Strikes 1 | . . . 1 Damage Taken 1683 | . 432 328 923 Core 501 | . 101 89 311 Absorbed by Shields . | . . . . Regen/Repaired (Parts) 34 | . . . 34 Core Remaining (%) 79 | 100 59 . . Volleys Fired 58 | . 22 13 23 Largest 2 | . 2 2 2 Hottest 80 | . 80 80 73 Shots Fired 95 | . 35 23 37 Gun 94 | . 35 23 36 Cannon . | . . . . Launcher 1 | . . . 1 Special . | . . . . Kinetic 37 | . 23 1 13 Thermal 8 | . 8 . . Explosive . | . . . . Electromagnetic 50 | . 4 22 24 Robot Hit Streak 10 | . 7 8 10 Robot Miss Streak 3 | . 3 2 3 Penetration Max . | . . . . Secondary Targets 2 | . 1 . 1 Max Gunslinging Chain 1 | . 1 . 1 Shots Hit Robots 66 | . 26 16 24 Core Hits 43 | . 16 7 20 Critical Kills . | . . . . Critical Parts Destroyed . | . . . . Critical Strikes . | . . . . Melee Attacks . | . . . . Impact . | . . . . Slashing . | . . . . Piercing . | . . . . Sneak Attacks . | . . . . Combat Hostiles . | . . . . Follow-up Attacks . | . . . . Damage Inflicted 1361 | . 339 351 671 Guns 787 | . 264 221 302 Cannons . | . . . . Explosions 552 | . 75 130 347 Melee . | . . . . Ramming 22 | . . . 22 Kinetic 248 | . 148 . 100 Thermal 464 | . 156 130 178 Explosive . | . . . . Electromagnetic 627 | . 35 221 371 Impact . | . . . . Slashing . | . . . . Piercing . | . . . . Highest Corruption . | . . . . Average Corruption . | . . . . Corruption Purged . | . . . . Corruption Blocked . | . . . . Overload Shots . | . . . . Overflow Damage 49 | . . . 49 Projectiles . | . . . . Explosions 49 | . . . 49 Melee . | . . . . Knockbacks . | . . . . Impact . | . . . . Kinetic . | . . . . Secondary . | . . . . Self-Inflicted Damage 100 | . 4 34 62 Shots 4 | . 1 1 2 Rammed . | . . . . Targets Rammed 6 | . . . 6 Kicked 6 | . . . 6 Crushed . | . . . . Highest Temperature 156 | . 156 102 3 Average Temperature 49 | . 58 38 2 Received Heat Transfer 783 | . 222 138 423 Siege Activations . | . . . . Martial Activations . | . . . . Shielding Activations . | . . . . Robots Disrupted 1 | . . . 1 Combat Hostiles . | . . . . Robots Corrupted 1 | . . 1 . Combat Hostiles 1 | . . 1 . Parts Fried . | . . . . Impact Corruptions . | . . . . Robots Melted . | . . . . Combat Hostiles . | . . . . Parts Melted . | . . . . Heat Transferred 600 | . 325 150 125 Parts Sabotaged . | . . . . Parts Stolen . | . . . . Parts Stripped . | . . . . Power Chain Reactions 3 | . 1 1 1 Alert | -11 -10 -9 -9 ------- Run | Yrd Mat Mat Sto Maximum Alert Level . | . . . . Low Security (%) 100 | 100 100 100 100 Level 1 . | . . . . Level 2 . | . . . . Level 3 . | . . . . Level 4 . | . . . . Level 5 . | . . . . High Security . | . . . . Max Security . | . . . . Peak Influence 183 | . 135 107 183 Initial 52 | . . 52 19 Average 41 | . 36 68 33 Influence Increases 683 | . 195 145 343 Destroy 0b10 Robot/C 360 | . 140 80 140 Destroy 0b10 Robot/NC 20 | . 10 5 5 Destroy Leader 92 | . 30 30 32 Allied During Kill 4 | . . . 4 Successful Hack 28 | . . . 28 Disable Machine 30 | . 15 . 15 Destroy Structure 14 | . . . 14 Lose Combat Pursuer 135 | . . 30 105 Influence Decreases 580 | . 70 223 287 Entered New Map 101 | . . 73 28 Time Decay 315 | . 60 120 135 Lost Part 130 | . 10 30 90 Lost Ally 34 | . . . 34 Squads Dispatched 7 | . 2 1 4 Investigation 3 | . 1 . 2 Extermination . | . . . . Reinforcement 2 | . 1 1 . Assault 2 | . . . 2 Garrison . | . . . . Intercept . | . . . . Searches Triggered . | . . . . Construction Impeded . | . . . . Haulers Reinforced . | . . . . Active Scanning Responses . | . . . . Cargo Convoy Interrupts . | . . . . Stealth | -11 -10 -9 -9 --------- Run | Yrd Mat Mat Sto Distress Signals 1 | . . 1 . Communications Jammed . | . . . . Distress Signals . | . . . . Times Spotted 41 | . 8 10 23 Peak Tracking Total 12 | . 3 3 12 Tactical Retreats 5 | . . 2 3 Traps | -11 -10 -9 -9 ------- Run | Yrd Mat Mat Sto Traps Triggered 2 | . 2 . . Indirectly . | . . . . Trap Hack Attempts . | . . . . Triggered . | . . . . Disarmed . | . . . . Reprogrammed . | . . . . Reused . | . . . . Traps Extracted . | . . . . Installed . | . . . . Triggered . | . . . . Machines | -11 -10 -9 -9 ---------- Run | Yrd Mat Mat Sto Machines Disabled 2 | . 1 . 1 Max in Single Turn 1 | . 1 . 1 Machines Repaired . | . . . . Machines Dismantled . | . . . . Machines Sabotaged . | . . . . Overloaded Fab Kills . | . . . . Hacking | -11 -10 -9 -9 --------- Run | Yrd Mat Mat Sto Machines Accessed 10 | . 1 2 7 Terminals 7 | . 1 1 5 Fabricators . | . . . . Repair Stations 1 | . . . 1 Recycling Units 1 | . . . 1 Scanalyzers 1 | . . 1 . Garrison Access . | . . . . Total Hacks 24 | . 2 3 19 Successful 15 | . . 2 13 Failed 9 | . 2 1 6 Catastrophic 2 | . . . 2 Database Lockouts . | . . . . Manual 10 | . . . 10 Terminals 15 | . 2 1 12 Fabricators . | . . . . Repair Stations 4 | . . . 4 Recycling Units 3 | . . . 3 Scanalyzers 2 | . . 2 . Garrison Access . | . . . . Terminal Hacks 5 | . . . 5 Prototype ID Bank 1 | . . . 1 Open Door 1 | . . . 1 Branch Access Points 1 | . . . 1 Locate Traps 1 | . . . 1 Recall Investigation 1 | . . . 1 Fabricator Hacks . | . . . . Repair Station Hacks 4 | . . . 4 Scan Component 2 | . . . 2 Repair 2 | . . . 2 Recycling Unit Hacks 2 | . . . 2 Report Inventory 1 | . . . 1 Retrieve Components 1 | . . . 1 Scanalyzer 2 | . . 2 . Insert Component 1 | . . 1 . Analyze 1 | . . 1 . Garrison Access Hacks . | . . . . Unauthorized Hacks 2 | . . . 2 Terminals 2 | . . . 2 Track 1 | . . . 1 Assimilate 1 | . . . 1 Fabricators . | . . . . Repair Stations . | . . . . Recycling Units . | . . . . Scanalyzers . | . . . . Garrison Access . | . . . . Data Cores Recovered . | . . . . Used . | . . . . Hacking Detections 9 | . 1 1 7 Full Trace Events 2 | . . . 2 Feedback Events . | . . . . Feedback Blocked . | . . . . Robot Schematics Acquired . | . . . . Robots Built . | . . . . Authchips . | . . . . Time . | . . . . Total Robot Build Rating . | . . . . Part Schematics Acquired 1 | . . 1 . Parts Built . | . . . . Authchips . | . . . . Time . | . . . . Total Part Build Rating . | . . . . Parts Repaired 2 | . . . 2 Time 52 | . . . 52 Parts Recycled . | . . . . Recycled Matter . | . . . . Retrieved Matter . | . . . . Retrieved Components 3 | . . . 3 Parts Scanalyzed 1 | . . 1 . Part Schematics Acquired 1 | . . 1 . Parts Damaged 1 | . . 1 . Bothacking | -11 -10 -9 -9 ------------ Run | Yrd Mat Mat Sto Used RIF Installer . | . . . . Robots Hacked . | . . . . Non-combat . | . . . . Combat . | . . . . Robot Hacks Applied . | . . . . Relay Couplers Released . | . . . . Fabnet Peak Effective % . | . . . . Robots Rewired . | . . . . Allies Hacked . | . . . . Hacks Repelled . | . . . . Allies | -11 -10 -9 -9 -------- Run | Yrd Mat Mat Sto Total Allies 2 | . . . 2 Largest Group 2 | . . . 2 Highest-Rated Group 62 | . . . 62 Highest-Rated Ally 31 | . . . 31 Total Orders . | . . . . Ally Attacks 13 | . . . 13 Total Damage 211 | . . . 211 Kills 1 | . . . 1 Allies Corrupted . | . . . . Allies Melted . | . . . . Intel | -11 -10 -9 -9 ------- Run | Yrd Mat Mat Sto Active Infowar (turns) . | . . . . Robot Analysis Total . | . . . . Derelict Logs Recovered . | . . . . Drone Launches . | . . . . Drone Recoveries . | . . . . Exploration | -11 -10 -9 -9 ------------- Run | Yrd Mat Mat Sto Turns Passed 882 | 62 177 247 396 Spaces Moved 648 | 46 84 238 280 Core 9 | 6 . . 3 Treads . | . . . . Legs 124 | 40 53 . 31 Wheels . | . . . . Hover 515 | . 31 238 246 Flight . | . . . . Fastest Speed 48 | 50 56 48 48 Average Speed 65 | 110 114 48 58 Slowest Speed 250 | 120 120 52 250 Overloaded Moves . | . . . . Propulsion Burnouts . | . . . . Robots Hopped . | . . . . Potential Cave-ins . | . . . . Cave-ins Triggered . | . . . . Exploration Rate (%) 22 | 4 25 18 42 Regions Visited 3 Branch Regions 1 Pre-discovered Areas . | . . . . Known Exits Taken . | . . . . Unknown Exits Taken 3 | 1 1 1 . Scrap Searched . | . . . . Spaces Dug . | . . . . Terrain Destroyed 12 | . . . 12 Melee . | . . . . Projectile . | . . . . AOE 12 | . . . 12 Terrain Rammed . | . . . . Walls Destroyed . | . . . . Machines Disabled . | . . . . Actions | -11 -10 -9 -9 --------- Run | Yrd Mat Mat Sto Total 1008 | 55 132 346 475 Wait 215 | . . 78 137 Move 645 | 45 83 237 280 Hop . | . . . . Pick Up 26 | 4 9 6 7 Fast Attach 10 | 4 3 1 2 Attach 14 | 2 3 5 4 Detach 4 | . 2 . 2 Swap 16 | . 6 3 7 Drop 14 | . 4 3 7 Fire 58 | . 22 13 23 Melee . | . . . . Ram . | . . . . Kick 6 | . . . 6 Crush . | . . . . Escape Stasis . | . . . . Rewire . | . . . . Trap . | . . . . Miscellaneous . | . . . . Route ------- -11/Scrapyard -10/Materials -9/Materials -9/Storage (discovered 1 exit: Rec) History --------- Turn | Location | Event 10 | -11/Scrapyard | Discovered new exit (range 16) 63 | -11/Scrapyard | Entered Materials 119 | -10/Materials | Discovered new exit (range 10) 240 | -10/Materials | Entered another Materials area 240 | -9/Materials | Evolved 2 slots: Propulsion x2 307 | -9/Materials | Build established: Mutant 479 | -9/Materials | Discovered new exit (range 16) 487 | -9/Materials | Entered Storage 535 | -9/Storage | Identified exit to Recycling 565 | -9/Storage | Repaired Hover Unit 593 | -9/Storage | Repaired Hover Unit 722 | -9/Storage | Met a pair of Derelict thieves 844 | -9/Storage | Core integrity fell below 50% 872 | -9/Storage | Core integrity fell below 20% 883 | -9/Storage | Destroyed by G-47 Trooper with Particle Gun Last Messages --------------- U-05 Engineer lays Concrete. U-05 Engineer builds a Wall. Dropped Cooling System. R-06 Scavenger collects Corrupted Particle Gun. U-05 Engineer builds a Wall. R-06 Scavenger collects Heat Sink. U-05 Engineer builds a Wall. Kicked G-34 Mercenary out of the way. Kicked G-34 Mercenary. Kicked G-34 Mercenary out of the way. Imp. Ion Engine destroyed. Sml. Battery destroyed. Kicked I-25 Savior. R-06 Scavenger collects Corrupted Imp. Heat Sink. Kicked I-25 Savior out of the way. Connecting with Door Terminal... Assault Rifle destroyed. M-13 Machinist repairs G-34 Mercenary Heat Sink. Aluminum Leg destroyed. Ion Engine destroyed. Map ----- +----------------------------------------------------+ | | | | | | | | | | | | | | | | | | | | | | | ???????????????????????##########?????????????? | | ??????????????????????## ?????????????? | | ??????????????????????"" ! ]#????????????? | | ??????????????????????"T ????????????? | | ?????????????####?????"" #????????????? | | ?????????????"""""#????# #????????????? | | ??????????###""T""###???? =! #????????????? | | ??????##### #?????? ! #????????????? | | ??????#! !# """ """ ##??????? ###??????????? | | #####?#! !# """ """ #?########+##T#"?????????? | | ^ #?#! !# """ """ #??# "?>???????? | | ^ ^ #?#![!# #??# gl "?????????? | | """ ###"=!" #??# Y##########"?????????? | | """ ## [%[#! #??# #???????????????????? | | """ ####="" !#??#g@#???????????????????? | | ^ + %%=""####+########g #???????????????????? | | #### "##?# +???????????????????? | | #### ##### #### #???????????????????? | | #####??# % ! % #??# #???????????????????? | | #??# %= ##/#??# #???????????????????? | | #??# % # ?# #???????????????????? | | #??# %[* #""" # #???????????????????? | | ##+##### #""" # #???????????????????? | | ## ##+##+## #""" # #???????????????????? | | #T #? ?# #""" # +???????????????????? | | ##" "##?] ??# #??? + #???????????????????? | | ## ???# #???? # #???????????????????? | | !! ## ????# #?????# #???????????????????? | | ! ! !#? ????# %#?????? ????????????????????? | | ! ! !#? ????# #?????? ????????????????????? | | #######? ????+ #?????? ????????????????????? | | ?????????????? #????????????????????????????? | | ??????????????? #????????????????????????????? | | ??????????????? ??????????????????????????????? | | ??????????????????????????????????????????????? | | ??????????????????????????????????????????????? | | ??????????????????????????????????????????????? | | ??????????????????????????????????????????????? | | ??????????????????????????????????????????????? | +----------------------------------------------------+ Best States ------------- Heat Dissipation 50 Energy Generation 12 Energy Capacity 365 Matter Stores 300 Matter Capacity 300 Sight Range 16 Terrain Scan Density 10 Evasion (%) 55 Item Schematics ----------------- Imp. Assault Rifle | -9/Materials | Scanalyzed Robot Schematics ------------------ None Fabricated ------------ Nothing Repaired ---------- Hover Unit | 40% | -9/Storage Hover Unit | 46% | -9/Storage Alien Tech Used ----------------- None Achievements -------------- None Challenges ------------ None Game ------ Seed BombardmentRelayDeflector Manual? 0 Play Time 00:27:52 Cumulative 34.1 hours Start 2025.07.05 @ 16:05:15 End 2025.07.05 @ 16:35:03 Sessions 1 Manual Loads 0 Difficulty Rogue Special Mode None Game No. 26 Rogue 23 Adventurer 1 Explorer 2 Win Type - Total 0 Types 0/0/0/0/0/0/0/0/0/0 Lore% 18 Gallery% 26 Achievement% 24 Wizard Run 0 Options --------- Layout 0 ASCII 0 Keyboard 0 Movement Mouse Keybinds 0 Fullscreen 2 Font 24/Smallcaps Map View 76x50 Zoom Use 0% Tactical HUD 0 Map Filters NONE Filters NONE Steam 1 RUN: e4eaf90b-4285-45ee-8dd2-f8286ba50231